[Event "Early-Titled-Tuesday-Blitz-February-13-2024"]
[Site "Chess.com"]
[Date "2024.02.13"]
[Round "11"]
[White "GM_dmitrij"]
[Black "AryanTari"]
[Result "1-0"]
[WhiteElo "3061"]
[BlackElo "2935"]
[TimeControl "180+1"]
[EndTime "10:09:21 PST"]
[Termination "GM_dmitrij won on time"]

1. d4 {[%clk 0:03:00.9]} 1... d5 {[%clk 0:02:56.7]} 2. c4 {[%clk 0:03:01]} 2...
e6 {[%clk 0:02:55.7]} 3. Nf3 {[%clk 0:03:01.6]} 3... Nf6 {[%clk 0:02:55.4]} 4.
g3 {[%clk 0:03:02]} 4... dxc4 {[%clk 0:02:52.6]} 5. Bg2 {[%clk 0:03:00.4]} 5...
c5 {[%clk 0:02:53.1]} 6. O-O {[%clk 0:02:48]} 6... Nc6 {[%clk 0:02:52.9]} 7. Na3
{[%clk 0:02:48.3]} 7... cxd4 {[%clk 0:02:47.1]} 8. Nxc4 {[%clk 0:02:48.1]} 8...
Bc5 {[%clk 0:02:47.6]} 9. a3 {[%clk 0:02:42.7]} 9... a5 {[%clk 0:02:46.8]} 10.
Bf4 {[%clk 0:02:40.9]} 10... Nd5 {[%clk 0:02:19.8]} 11. Be5 {[%clk 0:02:21.7]}
11... Nxe5 {[%clk 0:02:03.7]} 12. Ncxe5 {[%clk 0:02:22.6]} 12... O-O {[%clk
0:01:24.8]} 13. Nxd4 {[%clk 0:02:20.5]} 13... a4 {[%clk 0:01:18.8]} 14. Rc1
{[%clk 0:02:14.2]} 14... Qb6 {[%clk 0:01:09.7]} 15. e3 {[%clk 0:02:01.3]} 15...
Bxd4 {[%clk 0:00:59.8]} 16. Qxd4 {[%clk 0:01:57.3]} 16... Qxd4 {[%clk
0:00:59.8]} 17. exd4 {[%clk 0:01:58.2]} 17... f6 {[%clk 0:00:56.9]} 18. Nd3
{[%clk 0:01:54]} 18... Rd8 {[%clk 0:00:46.7]} 19. Rfe1 {[%clk 0:01:53.9]} 19...
Kf7 {[%clk 0:00:42.5]} 20. h4 {[%clk 0:01:39.8]} 20... Ra5 {[%clk 0:00:28.1]}
21. Rc4 {[%clk 0:01:29.5]} 21... Bd7 {[%clk 0:00:26.1]} 22. Bxd5 {[%clk
0:01:22.5]} 22... Rxd5 {[%clk 0:00:27]} 23. Nc5 {[%clk 0:00:57.9]} 23... b6
{[%clk 0:00:10.6]} 24. Ne4 {[%clk 0:00:58]} 24... Be8 {[%clk 0:00:07.9]} 25.
Rc7+ {[%clk 0:00:41.8]} 25... R8d7 {[%clk 0:00:08.4]} 26. Rc6 {[%clk 0:00:41.7]}
26... Rxd4 {[%clk 0:00:03.8]} 27. Rxb6 {[%clk 0:00:42.1]} 27... e5 {[%clk
0:00:03.5]} 28. h5 {[%clk 0:00:35.1]} 28... Ke7 {[%clk 0:00:03.2]} 29. h6 {[%clk
0:00:34.4]} 29... f5 {[%clk 0:00:02.6]} 30. hxg7 {[%clk 0:00:33.7]} 30... Kf7
{[%clk 0:00:03.2]} 31. Nf6 {[%clk 0:00:30.5]} 1-0

[Event "Early-Titled-Tuesday-Blitz-February-13-2024"]
[Site "Chess.com"]
[Date "2024.02.13"]
[Round "11"]
[White "GianmarcoVaR"]
[Black "TigrVShlyape"]
[Result "0-1"]
[WhiteElo "2718"]
[BlackElo "2861"]
[TimeControl "180+1"]
[EndTime "10:09:22 PST"]
[Termination "TigrVShlyape won on time"]

1. e4 {[%clk 0:02:57.5]} 1... e5 {[%clk 0:02:58.3]} 2. Nf3 {[%clk 0:02:56.6]}
2... Nc6 {[%clk 0:02:58.4]} 3. Bc4 {[%clk 0:02:56.7]} 3... Nf6 {[%clk 0:02:58]}
4. d3 {[%clk 0:02:56.8]} 4... Bc5 {[%clk 0:02:56.3]} 5. O-O {[%clk 0:02:56.9]}
5... O-O {[%clk 0:02:55.7]} 6. Re1 {[%clk 0:02:55.3]} 6... a5 {[%clk 0:02:52.9]}
7. h3 {[%clk 0:02:51.5]} 7... h6 {[%clk 0:02:44.2]} 8. c3 {[%clk 0:02:49.8]}
8... d6 {[%clk 0:02:43.2]} 9. Nbd2 {[%clk 0:02:50]} 9... a4 {[%clk 0:02:37.8]}
10. Nf1 {[%clk 0:02:40.5]} 10... Be6 {[%clk 0:02:29.7]} 11. Bb5 {[%clk
0:02:15.6]} 11... a3 {[%clk 0:01:47.8]} 12. d4 {[%clk 0:01:56.2]} 12... axb2
{[%clk 0:01:46.9]} 13. Bxb2 {[%clk 0:01:57.1]} 13... Bb6 {[%clk 0:01:43.5]} 14.
Bxc6 {[%clk 0:01:07.6]} 14... bxc6 {[%clk 0:01:42.2]} 15. dxe5 {[%clk
0:01:08.5]} 15... dxe5 {[%clk 0:01:41.3]} 16. Nxe5 {[%clk 0:01:09.4]} 16... Qxd1
{[%clk 0:01:40]} 17. Rexd1 {[%clk 0:01:09.5]} 17... Nxe4 {[%clk 0:01:39.5]} 18.
Ne3 {[%clk 0:01:05.3]} 18... Bxe3 {[%clk 0:01:35]} 19. fxe3 {[%clk 0:01:05.3]}
19... Rfb8 {[%clk 0:01:35.4]} 20. Bc1 {[%clk 0:00:58.9]} 20... Rxa2 {[%clk
0:01:34.1]} 21. Rxa2 {[%clk 0:00:57]} 21... Bxa2 {[%clk 0:01:34.1]} 22. Ba3
{[%clk 0:00:49.5]} 22... c5 {[%clk 0:01:29.6]} 23. Ra1 {[%clk 0:00:25.2]} 23...
Be6 {[%clk 0:01:24.4]} 24. Nd3 {[%clk 0:00:16.2]} 24... c4 {[%clk 0:01:19.5]}
25. Nc5 {[%clk 0:00:11]} 25... Nxc3 {[%clk 0:01:18.6]} 26. Nxe6 {[%clk
0:00:10.2]} 26... fxe6 {[%clk 0:01:18.4]} 27. Kf2 {[%clk 0:00:09.8]} 27... Ra8
{[%clk 0:01:16.5]} 28. Bb2 {[%clk 0:00:05.1]} 28... Rxa1 {[%clk 0:01:15.2]} 29.
Bxa1 {[%clk 0:00:06]} 29... Nb5 {[%clk 0:00:50.1]} 30. Be5 {[%clk 0:00:04]}
30... h5 {[%clk 0:00:46.8]} 31. g4 {[%clk 0:00:04.2]} 31... hxg4 {[%clk
0:00:46.6]} 32. hxg4 {[%clk 0:00:05]} 32... Kf7 {[%clk 0:00:47.2]} 33. Ke2
{[%clk 0:00:04.3]} 33... g6 {[%clk 0:00:43.3]} 34. Kd2 {[%clk 0:00:02.5]} 34...
Ke7 {[%clk 0:00:43.1]} 35. e4 {[%clk 0:00:02]} 35... Kd7 {[%clk 0:00:43.2]} 36.
Kc2 {[%clk 0:00:01.7]} 36... Kc6 {[%clk 0:00:43.5]} 37. Kb2 {[%clk 0:00:01.6]}
37... Kc5 {[%clk 0:00:43.8]} 38. Kc2 {[%clk 0:00:01.4]} 38... Nd6 {[%clk
0:00:43.5]} 0-1

[Event "Early-Titled-Tuesday-Blitz-February-13-2024"]
[Site "Chess.com"]
[Date "2024.02.13"]
[Round "11"]
[White "KhazhatulyAlikhan"]
[Black "Caroexpert"]
[Result "0-1"]
[WhiteElo "2422"]
[BlackElo "2551"]
[TimeControl "180+1"]
[EndTime "10:09:24 PST"]
[Termination "Caroexpert won on time"]

1. e4 {[%clk 0:02:57]} 1... c6 {[%clk 0:02:52]} 2. d4 {[%clk 0:02:55.7]} 2... d5
{[%clk 0:02:49.8]} 3. Nd2 {[%clk 0:02:53.2]} 3... dxe4 {[%clk 0:02:49.8]} 4.
Nxe4 {[%clk 0:02:54.1]} 4... Nf6 {[%clk 0:02:50]} 5. Nxf6+ {[%clk 0:02:50.6]}
5... exf6 {[%clk 0:02:50.9]} 6. Nf3 {[%clk 0:02:50.1]} 6... Na6 {[%clk
0:02:49.6]} 7. Bxa6 {[%clk 0:02:47.1]} 7... Qa5+ {[%clk 0:02:48.2]} 8. c3 {[%clk
0:02:45.2]} 8... Qxa6 {[%clk 0:02:48.8]} 9. Qe2+ {[%clk 0:02:39.5]} 9... Qxe2+
{[%clk 0:02:48.3]} 10. Kxe2 {[%clk 0:02:40.4]} 10... Bd6 {[%clk 0:02:47.6]} 11.
Be3 {[%clk 0:02:35.2]} 11... Be6 {[%clk 0:02:47]} 12. Kd2 {[%clk 0:02:34.4]}
12... O-O {[%clk 0:02:40.2]} 13. Rhe1 {[%clk 0:02:31.4]} 13... Bd5 {[%clk
0:02:39.7]} 14. Kd3 {[%clk 0:02:30.5]} 14... f5 {[%clk 0:02:34.1]} 15. c4 {[%clk
0:01:58.6]} 15... Be4+ {[%clk 0:02:33.5]} 16. Kc3 {[%clk 0:01:58.1]} 16... a5
{[%clk 0:02:29.4]} 17. a3 {[%clk 0:01:50.4]} 17... b5 {[%clk 0:02:26.2]} 18. c5
{[%clk 0:01:48.7]} 18... Bc7 {[%clk 0:02:24.1]} 19. b4 {[%clk 0:01:22.7]} 19...
Bd5 {[%clk 0:02:07.8]} 20. h3 {[%clk 0:00:38.7]} 20... f6 {[%clk 0:02:06.9]} 21.
Bd2 {[%clk 0:00:33.1]} 21... Kf7 {[%clk 0:02:05.5]} 22. Nh4 {[%clk 0:00:31.5]}
22... g6 {[%clk 0:02:02.6]} 23. Nf3 {[%clk 0:00:29.2]} 23... g5 {[%clk
0:02:02.2]} 24. Kb2 {[%clk 0:00:20.8]} 24... f4 {[%clk 0:02:01.9]} 25. Re2
{[%clk 0:00:17.7]} 25... h6 {[%clk 0:01:57.9]} 26. Rae1 {[%clk 0:00:16]} 26...
Bd8 {[%clk 0:01:50.4]} 27. bxa5 {[%clk 0:00:12.1]} 27... Kg6 {[%clk 0:01:50.1]}
28. Bb4 {[%clk 0:00:05.7]} 28... Bxa5 {[%clk 0:01:49.9]} 29. Bxa5 {[%clk
0:00:06.4]} 29... Rxa5 {[%clk 0:01:49.7]} 30. Re7 {[%clk 0:00:07]} 30... Rfa8
{[%clk 0:01:47.4]} 31. Ra1 {[%clk 0:00:05]} 31... b4 {[%clk 0:01:46.5]} 32. a4
{[%clk 0:00:04.2]} 32... Rxa4 {[%clk 0:01:46.4]} 33. Rxa4 {[%clk 0:00:03.3]}
33... Rxa4 {[%clk 0:01:47.3]} 34. Nd2 {[%clk 0:00:03.8]} 34... Ra2+ {[%clk
0:01:42.8]} 35. Kc1 {[%clk 0:00:04.4]} 35... Ra1+ {[%clk 0:01:33.7]} 36. Kb2
{[%clk 0:00:03]} 36... Rg1 {[%clk 0:01:32.2]} 37. f3 {[%clk 0:00:01.2]} 37...
Rxg2 {[%clk 0:01:32.4]} 38. Kc1 {[%clk 0:00:02.1]} 38... b3 {[%clk 0:01:32.2]}
39. Rb7 {[%clk 0:00:01.5]} 39... Rg3 {[%clk 0:01:32.3]} 40. Nxb3 {[%clk
0:00:01.6]} 40... Rxf3 {[%clk 0:01:31.7]} 41. Na5 {[%clk 0:00:01.9]} 41... Rxh3
{[%clk 0:01:27]} 42. Rc7 {[%clk 0:00:02]} 42... f3 {[%clk 0:01:23.1]} 43. Kd2
{[%clk 0:00:01.2]} 43... Rh2+ {[%clk 0:01:21.6]} 44. Ke1 {[%clk 0:00:01.2]}
44... f2+ {[%clk 0:01:16.6]} 45. Kf1 {[%clk 0:00:01.5]} 45... Be4 {[%clk
0:01:17.1]} 0-1

[Event "Early-Titled-Tuesday-Blitz-February-13-2024"]
[Site "Chess.com"]
[Date "2024.02.13"]
[Round "11"]
[White "Matols"]
[Black "Alblooshi_Hamad"]
[Result "1/2-1/2"]
[WhiteElo "2378"]
[BlackElo "2248"]
[TimeControl "180+1"]
[EndTime "10:09:31 PST"]
[Termination "Game drawn by repetition"]

1. d4 {[%clk 0:03:00.9]} 1... Nf6 {[%clk 0:02:58]} 2. c4 {[%clk 0:03:01.2]} 2...
e6 {[%clk 0:02:58.4]} 3. g3 {[%clk 0:03:01.4]} 3... c5 {[%clk 0:02:56.8]} 4. d5
{[%clk 0:03:01.1]} 4... exd5 {[%clk 0:02:56]} 5. cxd5 {[%clk 0:03:02]} 5... d6
{[%clk 0:02:56.6]} 6. Nc3 {[%clk 0:03:02.3]} 6... g6 {[%clk 0:02:56.1]} 7. Bg2
{[%clk 0:03:02.8]} 7... Bg7 {[%clk 0:02:56.3]} 8. Nf3 {[%clk 0:03:03.3]} 8...
O-O {[%clk 0:02:56.6]} 9. O-O {[%clk 0:03:03.9]} 9... a6 {[%clk 0:02:56.9]} 10.
a4 {[%clk 0:03:03.2]} 10... Nbd7 {[%clk 0:02:54.1]} 11. h3 {[%clk 0:03:01.6]}
11... Rb8 {[%clk 0:02:53.3]} 12. a5 {[%clk 0:02:58.8]} 12... Re8 {[%clk
0:02:51.2]} 13. Bf4 {[%clk 0:02:55.6]} 13... Nf8 {[%clk 0:02:50.8]} 14. Re1
{[%clk 0:02:49]} 14... h6 {[%clk 0:02:50.4]} 15. e4 {[%clk 0:02:37.6]} 15... g5
{[%clk 0:02:49.7]} 16. Bd2 {[%clk 0:02:35.4]} 16... Ng6 {[%clk 0:02:50.1]} 17.
Qc2 {[%clk 0:02:26.8]} 17... Nd7 {[%clk 0:02:46.7]} 18. Bf1 {[%clk 0:02:16.7]}
18... Nde5 {[%clk 0:02:46.4]} 19. Nh2 {[%clk 0:02:08.2]} 19... Qf6 {[%clk
0:02:16.1]} 20. Na4 {[%clk 0:02:04.3]} 20... g4 {[%clk 0:01:32.2]} 21. h4 {[%clk
0:01:59.5]} 21... h5 {[%clk 0:01:26.3]} 22. Nb6 {[%clk 0:01:55.2]} 22... Bd7
{[%clk 0:01:23.9]} 23. Nxd7 {[%clk 0:01:27.2]} 23... Nxd7 {[%clk 0:01:23.3]} 24.
Bc3 {[%clk 0:01:27.3]} 24... Nde5 {[%clk 0:01:19.1]} 25. Be2 {[%clk 0:01:18]}
25... Qe7 {[%clk 0:01:08.4]} 26. Kg2 {[%clk 0:01:14.2]} 26... Rf8 {[%clk
0:01:04.3]} 27. Nf1 {[%clk 0:01:04.9]} 27... Qd7 {[%clk 0:00:58.8]} 28. Ne3
{[%clk 0:01:04.2]} 28... Nf3 {[%clk 0:00:48.3]} 29. Bxf3 {[%clk 0:00:57.3]}
29... gxf3+ {[%clk 0:00:48.6]} 30. Kxf3 {[%clk 0:00:57.1]} 30... Qh3 {[%clk
0:00:41.6]} 31. Bxg7 {[%clk 0:00:53.5]} 31... Kxg7 {[%clk 0:00:41.8]} 32. Nf5+
{[%clk 0:00:53.2]} 32... Kh7 {[%clk 0:00:39.9]} 33. Qd2 {[%clk 0:00:34.2]} 33...
Ne5+ {[%clk 0:00:39.3]} 34. Ke2 {[%clk 0:00:32.2]} 34... Qg4+ {[%clk 0:00:37.6]}
35. Kf1 {[%clk 0:00:18.8]} 35... Qh3+ {[%clk 0:00:37.8]} 36. Ke2 {[%clk
0:00:18.2]} 36... Qg4+ {[%clk 0:00:36.9]} 37. Kf1 {[%clk 0:00:18.2]} 37... Qh3+
{[%clk 0:00:24.7]} 38. Ke2 {[%clk 0:00:18.1]} 1/2-1/2

[Event "Early-Titled-Tuesday-Blitz-February-13-2024"]
[Site "Chess.com"]
[Date "2024.02.13"]
[Round "11"]
[White "twofoxniel"]
[Black "SirGerhard"]
[Result "0-1"]
[WhiteElo "2626"]
[BlackElo "2799"]
[TimeControl "180+1"]
[EndTime "10:09:32 PST"]
[Termination "SirGerhard won by resignation"]

1. e4 {[%clk 0:03:00.9]} 1... c5 {[%clk 0:02:59.6]} 2. c3 {[%clk 0:02:57.4]}
2... d6 {[%clk 0:02:59.2]} 3. d4 {[%clk 0:02:57.9]} 3... Nf6 {[%clk 0:02:59.4]}
4. Nd2 {[%clk 0:02:57]} 4... g6 {[%clk 0:02:57.3]} 5. Ngf3 {[%clk 0:02:56.8]}
5... Bg7 {[%clk 0:02:57.3]} 6. Bd3 {[%clk 0:02:45.9]} 6... O-O {[%clk
0:02:56.7]} 7. O-O {[%clk 0:02:46.2]} 7... cxd4 {[%clk 0:02:54.2]} 8. cxd4
{[%clk 0:02:45.5]} 8... Nc6 {[%clk 0:02:54.5]} 9. h3 {[%clk 0:02:40.6]} 9... e5
{[%clk 0:02:54.3]} 10. dxe5 {[%clk 0:02:22.6]} 10... dxe5 {[%clk 0:02:54.3]} 11.
Bc4 {[%clk 0:02:20.6]} 11... a6 {[%clk 0:02:49.6]} 12. Re1 {[%clk 0:02:15.9]}
12... b5 {[%clk 0:02:47.9]} 13. Bb3 {[%clk 0:02:16.4]} 13... Bb7 {[%clk
0:02:48.3]} 14. Qe2 {[%clk 0:02:13.5]} 14... Nd4 {[%clk 0:02:35.7]} 15. Nxd4
{[%clk 0:02:12.9]} 15... Qxd4 {[%clk 0:02:35.9]} 16. Kh2 {[%clk 0:01:43.6]}
16... Rac8 {[%clk 0:02:26.8]} 17. f3 {[%clk 0:01:41.1]} 17... Rfd8 {[%clk
0:02:24.4]} 18. Nf1 {[%clk 0:01:41.5]} 18... Nh5 {[%clk 0:02:21.6]} 19. Be3
{[%clk 0:01:39.6]} 19... Qd6 {[%clk 0:02:17.8]} 20. g3 {[%clk 0:01:39]} 20...
Qe7 {[%clk 0:01:53.7]} 21. h4 {[%clk 0:01:37.6]} 21... Bf6 {[%clk 0:01:52]} 22.
Red1 {[%clk 0:01:30.9]} 22... Kg7 {[%clk 0:01:43.4]} 23. Rxd8 {[%clk 0:01:21.9]}
23... Rxd8 {[%clk 0:01:43.1]} 24. Rd1 {[%clk 0:01:22.2]} 24... Rxd1 {[%clk
0:01:38]} 25. Qxd1 {[%clk 0:01:23.1]} 25... Bc8 {[%clk 0:01:25.8]} 26. Qc2
{[%clk 0:01:18.5]} 26... Be6 {[%clk 0:01:14.1]} 27. Bc5 {[%clk 0:01:18.3]} 27...
Qd7 {[%clk 0:01:12]} 28. Bxe6 {[%clk 0:01:16.7]} 28... Qxe6 {[%clk 0:01:12.2]}
29. b3 {[%clk 0:01:13.5]} 29... Bd8 {[%clk 0:01:03.8]} 30. Ne3 {[%clk
0:01:12.7]} 30... Bxh4 {[%clk 0:00:58]} 31. gxh4 {[%clk 0:01:05.6]} 31... Nf4
{[%clk 0:00:58.3]} 32. Ng4 {[%clk 0:00:19.4]} 32... h5 {[%clk 0:00:57.8]} 33.
Kg3 {[%clk 0:00:19.9]} 33... hxg4 {[%clk 0:00:52.4]} 34. fxg4 {[%clk 0:00:20]}
34... Qd7 {[%clk 0:00:42.6]} 35. Be3 {[%clk 0:00:16.9]} 35... Ne6 {[%clk
0:00:37.3]} 36. Qc3 {[%clk 0:00:15.8]} 36... Nd4 {[%clk 0:00:35.7]} 37. a4
{[%clk 0:00:14.7]} 37... Ne2+ {[%clk 0:00:35.1]} 0-1

[Event "Early-Titled-Tuesday-Blitz-February-13-2024"]
[Site "Chess.com"]
[Date "2024.02.13"]
[Round "11"]
[White "InadaC"]
[Black "Hui_Li_Macau"]
[Result "1-0"]
[WhiteElo "2240"]
[BlackElo "2345"]
[TimeControl "180+1"]
[EndTime "10:09:33 PST"]
[Termination "InadaC won by checkmate"]

1. Nf3 {[%clk 0:03:00.9]} 1... d5 {[%clk 0:03:00.1]} 2. g3 {[%clk 0:02:56.6]}
2... Bg4 {[%clk 0:02:59.9]} 3. Bg2 {[%clk 0:02:55.5]} 3... Nd7 {[%clk
0:02:59.8]} 4. b3 {[%clk 0:02:55.3]} 4... c6 {[%clk 0:02:58.2]} 5. Bb2 {[%clk
0:02:55.2]} 5... Ngf6 {[%clk 0:02:58.7]} 6. O-O {[%clk 0:02:54.9]} 6... e6
{[%clk 0:02:58.6]} 7. d3 {[%clk 0:02:51.5]} 7... Be7 {[%clk 0:02:54.9]} 8. Nbd2
{[%clk 0:02:51.3]} 8... O-O {[%clk 0:02:54]} 9. c4 {[%clk 0:02:48.7]} 9... a5
{[%clk 0:02:51.9]} 10. Qc2 {[%clk 0:02:47.3]} 10... a4 {[%clk 0:02:50.7]} 11.
Rfb1 {[%clk 0:02:43.9]} 11... Qa5 {[%clk 0:02:39.6]} 12. Re1 {[%clk 0:02:41.8]}
12... Bb4 {[%clk 0:02:22.1]} 13. Red1 {[%clk 0:02:26.5]} 13... Qa7 {[%clk
0:01:58.7]} 14. Bd4 {[%clk 0:02:23]} 14... Bc5 {[%clk 0:01:55.7]} 15. Bxc5
{[%clk 0:02:22.1]} 15... Qxc5 {[%clk 0:01:52.6]} 16. d4 {[%clk 0:02:20.1]} 16...
Qa3 {[%clk 0:01:49.1]} 17. h3 {[%clk 0:02:18.8]} 17... Bf5 {[%clk 0:01:39.1]}
18. Qc3 {[%clk 0:02:14]} 18... Ne4 {[%clk 0:01:30.8]} 19. Nxe4 {[%clk
0:02:11.9]} 19... Bxe4 {[%clk 0:01:31.7]} 20. e3 {[%clk 0:02:07.3]} 20... h6
{[%clk 0:01:27.2]} 21. Nd2 {[%clk 0:02:01.4]} 21... Bxg2 {[%clk 0:01:25.8]} 22.
Kxg2 {[%clk 0:02:00.1]} 22... Qe7 {[%clk 0:01:18.5]} 23. Nf3 {[%clk 0:01:54.9]}
23... Ra6 {[%clk 0:01:10.8]} 24. Rab1 {[%clk 0:01:53.5]} 24... axb3 {[%clk
0:00:59.8]} 25. axb3 {[%clk 0:01:49.9]} 25... Rfa8 {[%clk 0:00:59]} 26. cxd5
{[%clk 0:01:44]} 26... exd5 {[%clk 0:00:58.6]} 27. Ra1 {[%clk 0:01:44.3]} 27...
Rxa1 {[%clk 0:00:47]} 28. Rxa1 {[%clk 0:01:43.1]} 28... Rxa1 {[%clk 0:00:47.9]}
29. Qxa1 {[%clk 0:01:42.4]} 29... Qb4 {[%clk 0:00:48.5]} 30. Qa8+ {[%clk
0:01:39]} 30... Kh7 {[%clk 0:00:47.8]} 31. Qd8 {[%clk 0:01:35.6]} 31... Nf6
{[%clk 0:00:44.4]} 32. Ne5 {[%clk 0:01:33.8]} 32... Qxb3 {[%clk 0:00:21.7]} 33.
Nxf7 {[%clk 0:01:32.3]} 33... Qb1 {[%clk 0:00:08.2]} 34. Qh8+ {[%clk 0:01:30.7]}
34... Kg6 {[%clk 0:00:08.4]} 35. Ne5+ {[%clk 0:01:30.2]} 35... Kf5 {[%clk
0:00:08.7]} 36. Qxg7 {[%clk 0:01:25.4]} 36... Qe4+ {[%clk 0:00:06.6]} 37. Kh2
{[%clk 0:01:20.9]} 37... Qc2 {[%clk 0:00:06.4]} 38. Kg2 {[%clk 0:01:16]} 38...
Qe4+ {[%clk 0:00:06.2]} 39. Nf3 {[%clk 0:01:15.2]} 39... Qc2 {[%clk 0:00:04]}
40. g4+ {[%clk 0:01:15.3]} 40... Ke6 {[%clk 0:00:03.6]} 41. Qxh6 {[%clk
0:01:10.9]} 41... Ke7 {[%clk 0:00:03.4]} 42. g5 {[%clk 0:01:06.9]} 42... Ne4
{[%clk 0:00:03.7]} 43. Qh4 {[%clk 0:01:02]} 43... Kf8 {[%clk 0:00:03.9]} 44. g6
{[%clk 0:01:01.3]} 44... Kg7 {[%clk 0:00:03.9]} 45. Qh7+ {[%clk 0:01:00.1]}
45... Kf6 {[%clk 0:00:04]} 46. Qf7# {[%clk 0:01:00]} 1-0

[Event "Early-Titled-Tuesday-Blitz-February-13-2024"]
[Site "Chess.com"]
[Date "2024.02.13"]
[Round "11"]
[White "Nikolakis2014"]
[Black "kpio91"]
[Result "1-0"]
[WhiteElo "2739"]
[BlackElo "2890"]
[TimeControl "180+1"]
[EndTime "10:09:34 PST"]
[Termination "Nikolakis2014 won by checkmate"]

1. d4 {[%clk 0:03:00.9]} 1... e6 {[%clk 0:02:59.3]} 2. Nf3 {[%clk 0:02:57.9]}
2... Nf6 {[%clk 0:02:55.9]} 3. e3 {[%clk 0:02:58.1]} 3... b6 {[%clk 0:02:55.9]}
4. Bd3 {[%clk 0:02:58.3]} 4... Bb7 {[%clk 0:02:56.1]} 5. O-O {[%clk 0:02:58.5]}
5... c5 {[%clk 0:02:48.4]} 6. c4 {[%clk 0:02:58.4]} 6... Bxf3 {[%clk 0:02:46.2]}
7. Qxf3 {[%clk 0:02:57.2]} 7... Nc6 {[%clk 0:02:46.8]} 8. Nc3 {[%clk 0:02:37.9]}
8... cxd4 {[%clk 0:02:41.5]} 9. exd4 {[%clk 0:02:38.1]} 9... Nxd4 {[%clk
0:02:41.2]} 10. Qg3 {[%clk 0:02:38.7]} 10... h5 {[%clk 0:02:15.6]} 11. Be3
{[%clk 0:02:11.6]} 11... h4 {[%clk 0:02:14.1]} 12. Qh3 {[%clk 0:02:11.8]} 12...
Nc6 {[%clk 0:02:13]} 13. Rfe1 {[%clk 0:02:09.6]} 13... Bc5 {[%clk 0:01:52.6]}
14. Rad1 {[%clk 0:01:58.9]} 14... a6 {[%clk 0:01:49.3]} 15. Bg5 {[%clk
0:01:44.8]} 15... Qc7 {[%clk 0:01:41.3]} 16. Nd5 {[%clk 0:01:22.2]} 16... Qd8
{[%clk 0:01:19.8]} 17. Bg6 {[%clk 0:01:12.5]} 17... Kf8 {[%clk 0:01:08.4]} 18.
Nf4 {[%clk 0:01:01.2]} 18... Qe8 {[%clk 0:00:54.2]} 19. Bxf6 {[%clk 0:00:41.7]}
19... gxf6 {[%clk 0:00:54]} 20. Be4 {[%clk 0:00:31.7]} 20... Rc8 {[%clk
0:00:47.3]} 21. Qc3 {[%clk 0:00:28.2]} 21... Rh6 {[%clk 0:00:44.9]} 22. a3
{[%clk 0:00:26.1]} 22... Qe7 {[%clk 0:00:34.4]} 23. Qd2 {[%clk 0:00:24.8]} 23...
f5 {[%clk 0:00:23.8]} 24. Nd5 {[%clk 0:00:23]} 24... Bxf2+ {[%clk 0:00:13.9]}
25. Kh1 {[%clk 0:00:17.4]} 25... exd5 {[%clk 0:00:03.2]} 26. Qxh6+ {[%clk
0:00:16.7]} 26... Kg8 {[%clk 0:00:03.3]} 27. Bxf5 {[%clk 0:00:16.1]} 27... Qxe1+
{[%clk 0:00:02.2]} 28. Rxe1 {[%clk 0:00:15.5]} 28... Bxe1 {[%clk 0:00:03.1]} 29.
Bh7+ {[%clk 0:00:15.6]} 29... Kh8 {[%clk 0:00:03.6]} 30. Bg6+ {[%clk 0:00:16.2]}
30... Kg8 {[%clk 0:00:04]} 31. Qh7+ {[%clk 0:00:16.8]} 31... Kf8 {[%clk
0:00:04.4]} 32. Qxf7# {[%clk 0:00:17.4]} 1-0

[Event "Early-Titled-Tuesday-Blitz-February-13-2024"]
[Site "Chess.com"]
[Date "2024.02.13"]
[Round "11"]
[White "Tolyanius"]
[Black "LuisFSiles"]
[Result "1-0"]
[WhiteElo "2520"]
[BlackElo "2289"]
[TimeControl "180+1"]
[EndTime "10:09:34 PST"]
[Termination "Tolyanius won by checkmate"]

1. e4 {[%clk 0:03:00.9]} 1... c5 {[%clk 0:02:59.4]} 2. b4 {[%clk 0:03:00.1]}
2... cxb4 {[%clk 0:02:58.2]} 3. d4 {[%clk 0:03:00.8]} 3... d5 {[%clk 0:02:56.7]}
4. exd5 {[%clk 0:03:00.9]} 4... Nf6 {[%clk 0:02:54.1]} 5. a3 {[%clk 0:03:00.3]}
5... Nxd5 {[%clk 0:02:49.9]} 6. axb4 {[%clk 0:02:56.4]} 6... e5 {[%clk
0:02:41.2]} 7. c3 {[%clk 0:02:43.9]} 7... exd4 {[%clk 0:02:37.8]} 8. Qxd4 {[%clk
0:02:43.6]} 8... Nc6 {[%clk 0:02:37.6]} 9. Qe4+ {[%clk 0:02:42.7]} 9... Be6
{[%clk 0:02:36.1]} 10. Nf3 {[%clk 0:02:35.4]} 10... Be7 {[%clk 0:02:17.5]} 11.
b5 {[%clk 0:02:31]} 11... Na5 {[%clk 0:02:05.2]} 12. Nd4 {[%clk 0:02:28.6]}
12... O-O {[%clk 0:01:54.5]} 13. Nxe6 {[%clk 0:02:16.3]} 13... fxe6 {[%clk
0:01:52.9]} 14. Bd3 {[%clk 0:02:16.8]} 14... Nf6 {[%clk 0:01:47.9]} 15. Qxe6+
{[%clk 0:02:13.3]} 15... Kh8 {[%clk 0:01:48]} 16. Bc2 {[%clk 0:01:46]} 16... Bc5
{[%clk 0:01:36.8]} 17. O-O {[%clk 0:01:45.6]} 17... Qc7 {[%clk 0:01:30]} 18. Bg5
{[%clk 0:01:40.7]} 18... Rae8 {[%clk 0:01:26.7]} 19. Qh3 {[%clk 0:01:38]} 19...
Ne4 {[%clk 0:01:13]} 20. Bxe4 {[%clk 0:00:54.5]} 20... Rxe4 {[%clk 0:01:11.1]}
21. Nd2 {[%clk 0:00:55.1]} 21... Re2 {[%clk 0:00:59.1]} 22. Nf3 {[%clk
0:00:43.5]} 22... Nc4 {[%clk 0:00:52.5]} 23. Rae1 {[%clk 0:00:11.9]} 23... Rxe1
{[%clk 0:00:36.9]} 24. Rxe1 {[%clk 0:00:12.8]} 24... Nb2 {[%clk 0:00:25.6]} 25.
Be3 {[%clk 0:00:06.4]} 25... Bd6 {[%clk 0:00:20.3]} 26. Ng5 {[%clk 0:00:06.1]}
26... h6 {[%clk 0:00:15.8]} 27. Bd4 {[%clk 0:00:06.9]} 27... Kg8 {[%clk
0:00:07.2]} 28. Qe6+ {[%clk 0:00:07.1]} 28... Kh8 {[%clk 0:00:05.7]} 29. Qxh6+
{[%clk 0:00:07.4]} 29... Kg8 {[%clk 0:00:05.5]} 30. Qh7# {[%clk 0:00:08.3]} 1-0